Cogmind - Beta 13 @@@ ROGUE MODE // 2024.04.26 @ 09:56:09 Player: Lena Result: Destroyed by Y-45 Defender with Heavy Assault Rifle Performance ------------- Evolutions (1) 500 Regions Visited (2) 400 Robots Destroyed (34) 170 Value Destroyed (769) 769 Prototype IDs (6) 120 Alien Tech Used (0) 0 Bonus (0) 0 TOTAL SCORE: 1959 Bonus ------- None Cogmind --------- Core Integrity 0/400 Matter 300/300 Energy 250/250 System Corruption 4% Temperature Cool (9) Movement Flying (102) Ox1 Location -9/Materials Parts ------- > --- POWER (1) -------- Ion Engine > --- PROPULSION (3) --- Improved Flight Unit Improved Flight Unit Improved VTOL Module > --- UTILITY (3) ------ Large Storage Unit Structural Scanner > --- WEAPON (2) ------- Light Assault Rifle Light Assault Rifle > --- INVENTORY (15) --- Light Ion Engine Aluminum Leg Aluminum Leg Improved VTOL Module Improved VTOL Module Small Storage Unit Terrain Scanner Transport Network Coupler Field Recycling Unit (0) Light Assault Rifle Light Assault Rifle Grenade Launcher Rocket Launcher Rocket Launcher Peak State ------------ > --- POWER ------------ Ion Engine > --- PROPULSION ------- Improved VTOL Module Improved VTOL Module Improved VTOL Module > --- UTILITY ---------- Large Storage Unit Structural Scanner Sensor Array > --- WEAPON ----------- Light Assault Rifle Light Assault Rifle > --- INVENTORY -------- Light Ion Engine Small Storage Unit Terrain Scanner Field Recycling Unit Light Assault Rifle Light Assault Rifle Light Assault Rifle Light Assault Rifle Light Assault Rifle Light Assault Rifle Light Assault Rifle Grenade Launcher Rocket Launcher Rocket Launcher [Rating: 19] Favorites ----------- Power Ion Engine Engine Ion Engine Propulsion Improved Aluminum Leg Treads Light Treads Leg Improved Aluminum Leg Flight Unit Improved VTOL Module Utility Small Storage Unit Device Sensor Array Storage Small Storage Unit Weapon Light Assault Rifle Ballistic Gun Light Assault Rifle Launcher Grenade Launcher Build | -11 -10 -9 ------- Run | Yrd Mat Mat Slots Evolved 2 | . . 2 Power . | . . . Propulsion 1 | . . 1 Utility 1 | . . 1 Weapon . | . . . Parts Attached 43 | 6 14 23 Power 7 | 1 2 4 Engine 7 | 1 2 4 Core . | . . . Reactor . | . . . Propulsion 12 | 2 2 8 Treads 2 | 2 . . Leg 3 | . 2 1 Wheel . | . . . Hover . | . . . Flight 7 | . . 7 Utility 7 | 1 3 3 Device 5 | . 3 2 Storage 2 | 1 . 1 Processor . | . . . Hackware . | . . . Protection . | . . . Artifact . | . . . Weapon 17 | 2 7 8 Energy Gun . | . . . Energy Cannon . | . . . Ballistic Gun 16 | 2 7 7 Ballistic Cannon . | . . . Launcher 1 | . . 1 Special Weapon . | . . . Impact Weapon . | . . . Slashing Weapon . | . . . Piercing Weapon . | . . . Special Melee Weapon . | . . . Unidentified Prototypes 2 | . . 2 Parts Lost 4 | . . 4 Power 1 | . . 1 Propulsion 1 | . . 1 Utility 1 | . . 1 Weapon 1 | . . 1 Highest Loss Streak 3 | . . 3 To Critical Strikes . | . . . Average Slot Usage (%) 92 | . 91 93 Engine 12 | . 14 10 Treads 8 | . 15 . Leg 15 | . 8 22 Flight 4 | . . 8 Device 16 | . 11 20 Storage 12 | . 14 11 Ballistic Gun 23 | . 25 20 Naked Turns . | . . . Heaviest Build 31 | 13 17 31 Greatest Support 40 | 40 40 36 Greatest Overweight (x) 9 | . 3 9 Average Overweight (x) . | . . . Largest Inventory Capacity 15 | 8 8 15 Average Capacity 10 | 6 8 14 Most Carried 15 | 5 8 15 Average Carried 9 | 2 7 12 Final Capacity 15 | 8 8 15 Final Carried 14 | 4 8 14 Class Distribution -------------------- 66% | Mutant 33% | Scavenger-Mutant Dominant Class ---------------- Mutant | -10/Materials Scavenger-Mutant | -9/Materials Resources | -11 -10 -9 ----------- Run | Yrd Mat Mat Matter Collected 1098 | 240 220 638 Remotely . | . . . Salvage Created 1005 | . 394 611 Parts 81 | . 35 46 Haulers Intercepted 1 | . . 1 Recyclers Shooed 3 | . . 3 Parts Field Recycled . | . . . Retrieved Matter . | . . . Parts Self-Destructed . | . . . Prevented . | . . . Kills | -11 -10 -9 ------- Run | Yrd Mat Mat Combat Hostiles Destroyed 26 | . 9 17 Guns 21 | . 9 12 AOE 5 | . . 5 Classes Destroyed 9 | . 5 4 Worker 1 | . 1 . Builder 2 | . 2 . Hauler 1 | . . 1 Recycler 1 | . . 1 Operator 1 | . . 1 Watcher 2 | . 1 1 Swarmer 11 | . 3 8 Grunt 12 | . 6 6 Sentry 3 | . . 3 Best Kill Streak 5 | . 5 5 Combat Bots Only 5 | . 2 5 Max Kills in Single Turn 3 | . 1 3 Gunslinging . | . . . Exploded 3 | . . 3 Melee . | . . . Uniques/NPCs Destroyed . | . . . Combat | -11 -10 -9 -------- Run | Yrd Mat Mat Hostile Shots Fired 178 | . 42 136 Missed 51 | . 13 38 Damage Taken 1518 | . 325 1193 Core 465 | . 58 407 Absorbed by Shields . | . . . Core Remaining (%) 88 | 100 76 . Volleys Fired 136 | . 42 94 Largest 2 | . 2 2 Hottest 50 | . 46 50 Shots Fired 222 | . 61 161 Gun 220 | . 61 159 Cannon . | . . . Launcher 2 | . . 2 Special . | . . . Kinetic 220 | . 61 159 Thermal . | . . . Explosive 2 | . . 2 Electromagnetic . | . . . Robot Hit Streak 11 | . 7 11 Robot Miss Streak 7 | . 3 7 Penetration Max . | . . . Secondary Targets 2 | . 1 1 Max Gunslinging Chain 1 | . 1 1 Shots Hit Robots 133 | . 33 100 Core Hits 61 | . 17 44 Critical Kills 1 | . . 1 Critical Parts Destroyed . | . . . Critical Strikes 1 | . . 1 Destroy 1 | . . 1 Melee Attacks . | . . . Impact . | . . . Slashing . | . . . Piercing . | . . . Sneak Attacks . | . . . Combat Hostiles . | . . . Follow-up Attacks . | . . . Damage Inflicted 1658 | . 541 1117 Guns 1478 | . 541 937 Cannons . | . . . Explosions 180 | . . 180 Melee . | . . . Ramming . | . . . Kinetic 1478 | . 541 937 Thermal . | . . . Explosive 180 | . . 180 Electromagnetic . | . . . Impact . | . . . Slashing . | . . . Piercing . | . . . Highest Corruption 4 | . . 4 Average Corruption 4 | . . 4 Corruption Purged . | . . . Corruption Blocked . | . . . Effects 8 | . . 8 Message Errors 1 | . . 1 Matter Fused 2 | . . 2 Heat Flow Errors 1 | . . 1 Data Loss (minor) 3 | . . 3 Alerts 1 | . . 1 Overload Shots . | . . . Overflow Damage 36 | . . 36 Projectiles . | . . . Explosions 36 | . . 36 Melee . | . . . Knockbacks . | . . . Impact . | . . . Kinetic . | . . . Secondary . | . . . Self-Inflicted Damage . | . . . Shots . | . . . Rammed . | . . . Targets Rammed . | . . . Kicked . | . . . Crushed . | . . . Highest Temperature 237 | . 49 237 Average Temperature 25 | . 10 43 Received Heat Transfer 621 | . 135 486 Siege Activations . | . . . Robots Corrupted . | . . . Combat Hostiles . | . . . Parts Fried . | . . . Impact Corruptions . | . . . Robots Melted . | . . . Combat Hostiles . | . . . Parts Melted . | . . . Heat Transferred . | . . . Parts Sabotaged . | . . . Parts Stolen . | . . . Parts Stripped . | . . . Power Chain Reactions . | . . . Alert | -11 -10 -9 ------- Run | Yrd Mat Mat Peak Influence 302 | . 177 302 Initial 11 | . . 11 Average 120 | . 78 176 Maximum Alert Level 1 | . . 1 Low Security (%) 73 | 100 100 43 Level 1 26 | . . 56 Level 2 . | . . . Level 3 . | . . . Level 4 . | . . . Level 5 . | . . . High Security . | . . . Max Security . | . . . Squads Dispatched 3 | . 1 2 Investigation 1 | . 1 . Extermination . | . . . Reinforcement 2 | . . 2 Assault . | . . . Garrison . | . . . Intercept . | . . . Searches Triggered . | . . . Construction Impeded . | . . . Haulers Reinforced . | . . . Active Scanning Responses . | . . . Cargo Convoy Interrupts . | . . . Stealth | -11 -10 -9 --------- Run | Yrd Mat Mat Distress Signals 2 | . 1 1 Communications Jammed . | . . . Distress Signals . | . . . Times Spotted 40 | . 13 27 Peak Tracking Total 6 | . 4 6 Tactical Retreats 1 | . 1 . Traps | -11 -10 -9 ------- Run | Yrd Mat Mat Traps Triggered 4 | . 3 1 Indirectly . | . . . Trap Hack Attempts . | . . . Triggered . | . . . Disarmed . | . . . Reprogrammed 1 | . . 1 Reused . | . . . Traps Extracted . | . . . Installed . | . . . Triggered . | . . . Machines | -11 -10 -9 ---------- Run | Yrd Mat Mat Machines Disabled 1 | . 1 . Max in Single Turn 1 | . 1 . Machines Repaired . | . . . Machines Dismantled . | . . . Machines Sabotaged . | . . . Overloaded Fab Kills . | . . . Hacking | -11 -10 -9 --------- Run | Yrd Mat Mat Machines Accessed 12 | . 7 5 Terminals 9 | . 5 4 Fabricators . | . . . Repair Stations 1 | . . 1 Recycling Units 2 | . 2 . Scanalyzers . | . . . Garrison Access . | . . . Total Hacks 25 | . 10 15 Successful 14 | . 6 8 Failed 11 | . 4 7 Catastrophic 1 | . . 1 Database Lockouts . | . . . Manual . | . . . Terminals 20 | . 6 14 Fabricators . | . . . Repair Stations 1 | . . 1 Recycling Units 4 | . 4 . Scanalyzers . | . . . Garrison Access . | . . . Terminal Hacks 11 | . 3 8 Record 2 | . . 2 Prototype ID Bank 2 | . 1 1 Emergency Access Points 1 | . . 1 Locate Traps 2 | . 1 1 Reprogram Traps 2 | . . 2 Investigation Status 1 | . 1 . Assault Status 1 | . . 1 Fabricator Hacks . | . . . Repair Station Hacks . | . . . Recycling Unit Hacks 3 | . 3 . Report Inventory 2 | . 2 . Retrieve Components 1 | . 1 . Scanalyzer . | . . . Garrison Access Hacks . | . . . Unauthorized Hacks . | . . . Terminals . | . . . Fabricators . | . . . Repair Stations . | . . . Recycling Units . | . . . Scanalyzers . | . . . Garrison Access . | . . . Data Cores Recovered 1 | . . 1 Used . | . . . Hacking Detections 9 | . 5 4 Full Trace Events 2 | . 1 1 Feedback Events . | . . . Feedback Blocked . | . . . Robot Schematics Acquired . | . . . Robots Built . | . . . Authchips . | . . . Time . | . . . Total Robot Build Rating . | . . . Part Schematics Acquired . | . . . Parts Built . | . . . Authchips . | . . . Time . | . . . Total Part Build Rating . | . . . Parts Repaired . | . . . Time . | . . . Parts Recycled . | . . . Recycled Matter . | . . . Retrieved Matter . | . . . Retrieved Components 1 | . 1 . Parts Scanalyzed . | . . . Part Schematics Acquired . | . . . Parts Damaged . | . . . Bothacking | -11 -10 -9 ------------ Run | Yrd Mat Mat Used RIF Installer . | . . . Robots Hacked . | . . . Non-combat . | . . . Combat . | . . . Robot Hacks Applied . | . . . Relay Couplers Released . | . . . Fabnet Peak Effective % . | . . . Robots Rewired . | . . . Allies Hacked . | . . . Hacks Repelled . | . . . Allies | -11 -10 -9 -------- Run | Yrd Mat Mat Total Allies . | . . . Largest Group . | . . . Highest-Rated Group . | . . . Highest-Rated Ally . | . . . Total Orders . | . . . Ally Attacks . | . . . Total Damage . | . . . Kills . | . . . Allies Corrupted . | . . . Allies Melted . | . . . Intel | -11 -10 -9 ------- Run | Yrd Mat Mat Robot Analysis Total . | . . . Derelict Logs Recovered . | . . . Drone Launches . | . . . Drone Recoveries . | . . . Exploration | -11 -10 -9 ------------- Run | Yrd Mat Mat Turns Passed 1848 | 97 887 864 Spaces Moved 1013 | 57 508 448 Core 57 | 6 50 1 Treads 329 | 51 278 . Legs 513 | . 180 333 Wheels . | . . . Hover . | . . . Flight 114 | . . 114 Fastest Speed 50 | 50 120 99 Average Speed 139 | 148 149 126 Slowest Speed 500 | 160 200 500 Overloaded Moves . | . . . Propulsion Burnouts . | . . . Robots Hopped . | . . . Cave-ins Triggered . | . . . Exploration Rate (%) 40 | 5 78 37 Regions Visited 2 Branch Regions . Pre-discovered Areas . | . . . Known Exits Taken . | . . . Unknown Exits Taken 2 | 1 1 . Scrap Searched . | . . . Spaces Dug . | . . . Terrain Destroyed 19 | . . 19 Melee . | . . . Projectile . | . . . AOE 19 | . . 19 Terrain Rammed . | . . . Walls Destroyed . | . . . Machines Disabled . | . . . Actions | -11 -10 -9 --------- Run | Yrd Mat Mat Total 1261 | 67 586 608 Wait 7 | . . 7 Move 1011 | 56 507 448 Hop . | . . . Pick Up 40 | 5 15 20 Fast Attach 12 | 5 2 5 Attach 12 | 1 6 5 Detach . | . . . Swap 19 | . 6 13 Drop 24 | . 8 16 Fire 136 | . 42 94 Melee . | . . . Ram . | . . . Kick . | . . . Crush . | . . . Escape Stasis . | . . . Rewire . | . . . Trap . | . . . Miscellaneous . | . . . Route ------- -11/Scrapyard -10/Materials (discovered 3 exits: *Mat x2 / [*Min]) -9/Materials (discovered 1 exit: [*Mat]) History --------- Turn | Location | Event 3 | -11/Scrapyard | Discovered new exit (range 14) 98 | -11/Scrapyard | Entered Materials 315 | -10/Materials | Build established: Mutant 461 | -10/Materials | Discovered new exit (range 6) 557 | -10/Materials | Discovered new exit (range 9) 889 | -10/Materials | Discovered new exit (range 3) 985 | -10/Materials | Entered another Materials area 985 | -9/Materials | Evolved 2 slots: Propulsion x1, Utility x1 1272 | -9/Materials | Build established: Scavenger-Mutant 1581 | -9/Materials | Discovered new exit (range 14) 1714 | -9/Materials | Core integrity fell below 50% 1742 | -9/Materials | Core integrity fell below 20% 1770 | -9/Materials | Lost 3 parts (1p1u1w) 1849 | -9/Materials | Destroyed by Y-45 Defender with Heavy Assault Rifle Last Messages --------------- Dropped Lgt. Assault Rifle. Acquired Prototype Flight Unit. R-06 Scavenger collects Prototype Flight Unit. Identified Imp. Flight Unit. Dropped Lgt. Assault Rifle. R-06 Scavenger collects Ion Engine. Dropped Lgt. Assault Rifle. Acquired Imp. Flight Unit. R-06 Scavenger collects Lgt. Assault Rifle. Acquired 46 matter. System corrupted: Heat flow error (+254). Acquired Transport Network Coupler. Acquired 36 matter. System corrupted: IFF burst signal emitted. Connecting with Terminal... >>Enumerate(Assaults) Retrieving latest reported positions... No active assault squads found. T-07 Excavator is excavating. YM= 3VFIUYG5PLHQYLR H,THSND2X Q Map ----- +----------------------------------------------------+ | | | | | | | | | | | | | | | | | | | | | | | | | | | | | | | | | | | | | | | ??????????##########?????????????????????? | | ??????????####### ##?????????????????????? | | ??????????## [! ##?????????????????????? | | ??????????## [ Y##?????????????????????? | | ??????????## ##?????????????????????? | | ??????????##[ "T" ##?????????????????????? | | ??????????## """@##?????????????????????? | | ??????????## ##?????????????????????? | | ??????????#####+####?????????????????????? | | ??????????### # ?????????????????????? | | ???????????## # ???????############??? | | ???????????##### # ???????############??? | | ???????????##### # ???????## ##??? | | ??????????????## + ???????## """##??? | | ?????????????### # ? #### """##??? | | ??????????###### ########### """##??? | | ??????## ###### ##### # ##??? | | ??????## # !##??? | | ??????#### T + ##??? | | ??????######### ##### % # "T" ##??? | | ????????########+######## # """ ##### | | ????????????? ?### ############## | | ???????????????????????## [ [= | | ???????????????????????## [[[ | | ???????????????????????## = | | ???????????????????????## ##########+### | | ???????????????????????## [######### | | ???????????????????????## ##???????????? | | ???????????????????????## !##???????????? | | ???????????????????????## #######??????? | | ???????????????????????## #######??????? | +----------------------------------------------------+ Best States ------------- Heat Dissipation 42 Energy Generation 10 Energy Capacity 250 Matter Stores 300 Matter Capacity 300 Sight Range 16 Robot Scan Range 14 Terrain Scan Density 10 Evasion (%) 55 Recoil Reduction 2 Item Schematics ----------------- None Robot Schematics ------------------ None Fabricated ------------ Nothing Alien Tech Used ----------------- None Achievements -------------- Risk Taker Challenges ------------ None Game ------ Seed RocketMiniMultitool Manual? 0 Play Time 00:26:49 Cumulative 2.7 hours Start 2024.04.26 @ 09:25:51 End 2024.04.26 @ 09:56:09 Sessions 1 Manual Loads 0 Difficulty Rogue Special Mode None Game No. 7 Rogue 7 Adventurer 0 Explorer 0 Win Type - Total 0 Types 0/0/0/0/0/0/0/0/0 Lore% 2 Gallery% 4 Achievement% 5 Wizard Run 0 Options --------- Layout 1 ASCII 0 Keyboard 0 Movement Mouse Keybinds 0 Fullscreen 0 Font 42/SmallcapsGlow Map View 50x35 Zoom Use 0% Tactical HUD 0 Map Filters NONE Filters NONE Steam 1 RUN: 978e26dc-be8b-4c6d-a678-89ef5caf32f2